bitfinex/quotes_SOLUSD_20251116
["timestamp","ask_amount","ask_price","bid_price","bid_amount"]
[1763268124887,0.39,141.2,141.17,1.73620574]
[1763268125186,0.39,141.2,141.16,1.73620574]
[1763268125366,0.39,141.2,141.16,4.57560236]
[1763268125563,2.12620574,141.2,141.12,6.94482296]
[1763268125764,0.39,141.2,141.16,2.43620574]
[1763268127867,0.39,141.2,141.17,2.43620574]
[1763268128688,104.79,141.23,141.18,1.73620574]
[1763268128878,104.79,141.23,141.2,1.73620574]
[1763268129270,0.39,141.22,141.2,1.73620574]
[1763268129488,0.39,141.22,141.19,2.43620574]
[1763268130090,104.4,141.23,141.19,2.43620574]
[1763268130091,104.79,141.23,141.19,2.43620574]
[1763268130893,104.79,141.23,141.19,3.41489112]
[1763268132195,0.39,141.22,141.17,22.6512]
[1763268132501,0.39,141.22,141.19,2.71489112]
[1763268135729,3.10489112,141.22,141.16,0.66]
[1763268135887,3.10489112,141.22,141.18,2.71489112]
[1763268136072,0.39,141.21,141.18,2.71489112]
[1763268137902,0.39,141.21,141.17,2.71489112]
[1763268138076,9.78882769,141.2,141.16,2.71489112]
[1763268138586,10.17882769,141.2,141.16,3.39489112]
[1763268138788,0.39,141.19,141.16,3.39489112]
[1763268139511,3.10489112,141.19,141.15,2.71489112]
[1763268140025,2.0,141.18,141.15,3.39489112]
[1763268141223,2.39,141.18,141.15,3.39489112]
[1763268141427,2.0,141.18,141.15,3.39489112]
[1763268142224,2.39,141.18,141.15,3.39489112]
[1763268143429,2.0,141.18,141.15,3.39489112]
[1763268143622,2.0,141.18,141.16,0.68]
[1763268146625,2.0,141.18,141.15,3.39489112]
[1763268147738,2.39,141.18,141.15,3.39489112]
[1763268148322,2.0,141.18,141.15,3.39489112]
[1763268148932,2.0,141.18,141.16,0.68]
[1763268149136,2.0,141.18,141.16,3.39489112]
[1763268151225,2.0,141.18,141.17,3.39489112]
[1763268157207,2.0,141.18,141.14,22.6512]
[1763268157406,2.0,141.18,141.17,2.71489112]
[1763268157849,2.0,141.18,141.17,3.39489112]
[1763268159028,2.0,141.18,141.16,0.68]
[1763268159227,2.0,141.18,141.17,2.71489112]
[1763268159742,2.0,141.18,141.17,3.39489112]
[1763268168549,2.0,141.18,141.17,0.68]
[1763268168844,2.0,141.18,141.17,3.39489112]
[1763268169346,2.0,141.18,141.17,0.68]
[1763268169648,2.0,141.18,141.17,3.39489112]
[1763268171941,2.0,141.18,141.17,0.68]
[1763268172151,2.0,141.18,141.17,3.39489112]
[1763268179236,2.0,141.18,141.17,6.10978224]
[1763268181627,2.0,141.18,141.17,3.39489112]
[1763268190052,2.0,141.18,141.17,6.2340862]
[1763268192847,2.0,141.18,141.17,5.25668558]
[1763268215380,2.0,141.18,141.17,12.20664758]
[1763268216675,2.0,141.18,141.17,26.17039508]
[1763268216876,2.0,141.18,141.17,34.85784758]
[1763268218169,0.2,141.23,141.17,34.85784758]
[1763268218360,0.2,141.23,141.22,1.7374905]
[1763268221870,0.59,141.23,141.22,1.7374905]
[1763268223090,0.2,141.23,141.22,1.7374905]
[1763268224784,0.59,141.23,141.22,1.7374905]
[1763268226986,0.2,141.23,141.22,1.7374905]
[1763268227585,0.59,141.23,141.22,1.7374905]
[1763268229788,0.59,141.23,141.21,1.7374905]
[1763268230181,0.2,141.23,141.21,1.7374905]
[1763268230399,0.2,141.23,141.22,1.7374905]
[1763268231686,0.59,141.23,141.22,1.7374905]
[1763268232698,0.2,141.23,141.22,1.7374905]
[1763268233781,0.59,141.23,141.21,4.57587971]
[1763268233984,0.59,141.23,141.21,1.7374905]
[1763268236097,0.2,141.23,141.21,1.7374905]
[1763268236802,0.2,141.23,141.21,2.4574905]
[1763268238010,0.59,141.23,141.21,1.7374905]
[1763268241109,0.2,141.23,141.21,1.7374905]
[1763268241283,0.2,141.23,141.22,1.7374905]
[1763268244906,0.2,141.23,141.22,2.4574905]
[1763268245484,0.2,141.23,141.22,1.7374905]
[1763268247909,0.2,141.23,141.22,2.4574905]
[1763268248086,0.2,141.23,141.22,1.7374905]
[1763268248583,0.2,141.23,141.22,2.4574905]
[1763268249003,0.2,141.23,141.22,1.7374905]
[1763268249514,0.2,141.23,141.22,2.4574905]
[1763268250614,0.2,141.23,141.22,1.7374905]
[1763268250795,0.2,141.23,141.22,2.4574905]
[1763268252910,0.2,141.23,141.22,3.4337772]
[1763268253909,0.2,141.23,141.22,2.7137772]
[1763268254084,0.59,141.23,141.21,2.83859063]
[1763268254290,0.39,141.22,141.19,3.4037772]
[1763268254500,0.39,141.22,141.19,6.44236783]
[1763268254713,0.39,141.22,141.19,3.4037772]
[1763268255010,0.39,141.22,141.19,9.15614503]
[1763268255514,0.39,141.22,141.19,5.75236783]
[1763268255515,3.1037772,141.22,141.19,5.75236783]
[1763268255722,2.7137772,141.21,141.17,2.7137772]
[1763268255916,3.1037772,141.21,141.18,5.75236783]
[1763268256222,0.39,141.2,141.18,5.75236783]
[1763268260317,2.7137772,141.22,141.18,8.46614503]
[1763268260495,0.39,141.21,141.18,8.46614503]
[1763268261006,0.39,141.21,141.19,2.7137772]
[1763268261604,0.39,141.21,141.18,9.15614503]
[1763268263923,0.59,141.23,141.2,2.7137772]
[1763268265421,0.2,141.23,141.2,2.7137772]
[1763268265602,0.39,141.22,141.2,2.7137772]
[1763268265810,0.2,141.23,141.2,2.7137772]
[1763268266021,0.2,141.23,141.21,0.69]
[1763268266525,0.2,141.23,141.2,3.4037772]
[1763268267322,0.2,141.23,141.2,2.7137772]
[1763268267525,0.2,141.23,141.21,0.69]
[1763268268824,0.2,141.23,141.2,2.7137772]
[1763268269024,0.59,141.23,141.2,3.4037772]
[1763268269521,0.2,141.23,141.2,3.4037772]
[1763268270100,0.59,141.23,141.2,3.4037772]
[1763268271529,0.59,141.23,141.2,0.69]
[1763268271827,3.3037772,141.23,141.2,0.69]
[1763268272537,0.59,141.23,141.2,0.69]
[1763268272925,0.59,141.23,141.19,24.00622902]
[1763268273231,0.39,141.22,141.19,3.4037772]
[1763268273604,13.09260489,141.23,141.19,3.4037772]
[1763268274920,13.09260489,141.23,141.19,2.7137772]
[1763268275102,13.09260489,141.23,141.2,0.69]
[1763268275304,13.09260489,141.23,141.19,2.7137772]
[1763268275528,13.09260489,141.23,141.19,3.4037772]
[1763268276236,10.37882769,141.23,141.19,3.4037772]
[1763268276634,10.37882769,141.23,141.19,2.7137772]
[1763268276837,10.37882769,141.23,141.2,0.69]
[1763268277636,10.37882769,141.23,141.19,0.69]
[1763268277931,10.37882769,141.23,141.19,2.7137772]
[1763268278120,10.37882769,141.23,141.2,0.69]
[1763268281440,0.2,141.23,141.2,3.4037772]
[1763268281938,0.59,141.23,141.2,3.4037772]
[1763268282539,0.2,141.23,141.2,3.4037772]
[1763268282965,0.59,141.23,141.2,3.4037772]
[1763268284249,0.2,141.23,141.21,0.67]
[1763268284948,0.2,141.23,141.2,24.6747179]
[1763268285139,0.2,141.23,141.21,0.67]
[1763268285941,0.2,141.23,141.2,24.0047179]
[1763268286141,0.2,141.23,141.2,0.67]
[1763268294372,0.59,141.23,141.2,0.67]
[1763268294870,0.2,141.23,141.2,0.67]
[1763268296442,0.59,141.23,141.2,0.67]
[1763268297371,0.2,141.23,141.2,0.67]
[1763268300473,0.59,141.23,141.2,0.67]
[1763268302378,2.7137772,141.21,141.15,0.67]
[1763268302590,2.7137772,141.19,141.15,2.7137772]
[1763268302773,2.7137772,141.18,141.15,21.96849845]
[1763268303069,2.7137772,141.18,141.15,0.67]
[1763268303768,3.1037772,141.19,141.15,0.67]
[1763268303970,2.7137772,141.19,141.15,3.3837772]
[1763268304155,5.94357699,141.2,141.15,6.22357699]
[1763268304355,5.94357699,141.2,141.16,0.67]
[1763268305546,2.7137772,141.18,141.15,2.83979979]
[1763268305746,2.7137772,141.16,141.12,0.67]
[1763268305947,2.7137772,141.14,141.11,3.51060646]
[1763268306151,2.7137772,141.12,141.08,0.67]
[1763268306350,2.7137772,141.12,141.08,3.3837772]
[1763268306573,2.7137772,141.12,141.08,6.89438366]
[1763268306768,2.7137772,141.12,141.09,0.67]
[1763268307448,3.1037772,141.11,141.07,0.67]
[1763268307650,2.7137772,141.11,141.08,0.67]
[1763268307892,3.51060646,141.11,141.1,2.7137772]
[1763268308069,9.78882769,141.14,141.1,2.7137772]
[1763268308274,12.62983766,141.14,141.11,0.67]
[1763268308803,15.73361486,141.14,141.11,0.67]
[1763268310373,12.89260489,141.14,141.11,0.67]
[1763268310762,12.50260489,141.14,141.11,0.67]
[1763268310982,22.6512,141.15,141.11,3.3837772]
[1763268311182,0.39,141.15,141.12,0.67]
[1763268311372,25.3649772,141.16,141.12,0.67]
[1763268311585,25.7549772,141.16,141.12,0.67]
[1763268312074,22.6512,141.16,141.12,3.3837772]
[1763268312390,104.2,141.17,141.13,2.7137772]
[1763268312569,35.15380489,141.18,141.14,2.7137772]
[1763268312770,106.9137772,141.2,141.16,2.7137772]
[1763268312978,105.93835207,141.2,141.17,0.67]
[1763268313289,128.97955207,141.2,141.17,0.67]
[1763268313480,128.97955207,141.2,141.16,2.42835207]
[1763268313688,104.2,141.2,141.17,2.42835207]
[1763268314172,104.2,141.2,141.18,0.69]
[1763268314368,104.2,141.2,141.17,2.42835207]
[1763268314572,104.59,141.2,141.17,0.69]
[1763268314983,104.2,141.2,141.17,0.69]
[1763268316694,104.59,141.2,141.17,0.69]
[1763268316993,104.2,141.2,141.17,0.69]
[1763268317891,104.2,141.2,141.17,2.42835207]
[1763268318370,106.32835207,141.2,141.15,2.42835207]
[1763268318571,106.32835207,141.2,141.15,1.73835207]
[1763268318771,106.32835207,141.2,141.16,0.69]
[1763268322500,106.32835207,141.2,141.16,2.42835207]
[1763268322690,106.32835207,141.2,141.17,0.69]
[1763268323287,11.91717976,141.19,141.15,1.73835207]
[1763268323605,1.73835207,141.18,141.14,2.42835207]
[1763268323806,2.12835207,141.18,141.14,1.73835207]
[1763268323978,2.12835207,141.18,141.15,0.69]
[1763268324813,11.52717976,141.19,141.15,2.42835207]
[1763268325098,11.52717976,141.19,141.16,0.69]
[1763268325403,11.91717976,141.19,141.16,0.69]
[1763268327120,10.17882769,141.19,141.16,2.42835207]
[1763268328693,104.2,141.2,141.17,2.42835207]
[1763268328894,104.2,141.2,141.18,1.73835207]
[1763268329198,2.32835207,141.23,141.19,1.73835207]
[1763268329382,24.58955207,141.23,141.19,2.42835207]
[1763268329700,24.58955207,141.23,141.2,0.69]
[1763268329999,1.93835207,141.23,141.2,0.69]
[1763268331078,2.32835207,141.23,141.15,43.94516316]
[1763268331285,2.32835207,141.23,141.2,0.69]
[1763268332381,1.93835207,141.23,141.2,0.69]
[1763268332595,0.2,141.23,141.21,1.73835207]
[1763268332809,0.2,141.23,141.22,2.42835207]
[1763268333611,0.2,141.23,141.22,0.69]
[1763268334509,0.2,141.23,141.2,0.69]
[1763268334680,0.2,141.23,141.2,2.42835207]
[1763268335097,0.2,141.23,141.21,0.69]
[1763268335495,0.2,141.23,141.21,2.42835207]
[1763268336211,0.2,141.23,141.21,0.69]
[1763268339917,0.2,141.23,141.21,2.42835207]
[1763268340692,0.2,141.23,141.22,2.42835207]
[1763268348427,0.2,141.23,141.22,12.41717976]
[1763268352128,0.2,141.23,141.22,10.67882769]
[1763268352429,0.2,141.23,141.22,0.72]
[1763268354725,0.2,141.23,141.2,0.72]
[1763268355106,0.2,141.23,141.2,2.45835207]
[1763268355520,0.2,141.23,141.21,0.72]
[1763268355827,0.2,141.23,141.21,2.45835207]
[1763268359921,0.2,141.23,141.21,1.73835207]
[1763268360125,0.2,141.23,141.22,0.72]
[1763268360538,0.2,141.23,141.21,1.73835207]
[1763268360750,0.2,141.23,141.21,2.45835207]
[1763268361931,0.2,141.23,141.21,1.73835207]
[1763268362139,0.2,141.23,141.22,0.72]
[1763268362536,0.2,141.23,141.21,2.45835207]
[1763268362735,0.2,141.23,141.21,0.72]
[1763268363316,0.2,141.23,141.21,2.45835207]
[1763268364527,0.2,141.23,141.21,1.73835207]
[1763268364731,0.2,141.23,141.21,2.45835207]
[1763268365539,0.2,141.23,141.19,1.73835207]
[1763268365724,0.2,141.23,141.2,0.72]
[1763268365910,0.59,141.23,141.2,2.45835207]
[1763268366115,0.2,141.23,141.2,2.45835207]
[1763268366842,0.2,141.23,141.2,1.73835207]
[1763268367337,0.2,141.23,141.2,2.45835207]
[1763268368241,0.2,141.23,141.21,0.72]
[1763268369031,0.2,141.23,141.2,1.73835207]
[1763268369236,0.59,141.23,141.2,2.45835207]
[1763268369457,0.59,141.23,141.19,2.45835207]
[1763268370128,2.32835207,141.23,141.19,2.45835207]
[1763268370439,0.39,141.22,141.19,0.72]
[1763268370934,1.73835207,141.22,141.19,0.72]
[1763268372547,0.59,141.23,141.19,2.45835207]
[1763268372548,2.32835207,141.23,141.19,2.45835207]
[1763268374343,2.32835207,141.23,141.2,0.67]
[1763268374731,1.93835207,141.23,141.2,0.67]
[1763268374925,12.70390638,141.23,141.2,0.67]
[1763268375643,13.09390638,141.23,141.2,0.67]
[1763268375844,12.70390638,141.23,141.2,0.67]
[1763268376740,13.09390638,141.23,141.2,0.67]
[1763268380822,13.09390638,141.23,141.19,0.67]
[1763268383246,13.09390638,141.23,141.19,3.38507869]
[1763268384648,13.09390638,141.23,141.2,0.67]
[1763268385132,3.10507869,141.22,141.18,0.67]
[1763268386644,3.10507869,141.22,141.18,3.38507869]
[1763268386844,3.10507869,141.22,141.19,0.67]
[1763268387161,0.2,141.23,141.2,2.71507869]
[1763268387755,0.2,141.23,141.21,0.67]
[1763268388247,0.2,141.23,141.22,2.71507869]
[1763268388628,0.2,141.23,141.22,3.38507869]
[1763268391258,0.2,141.23,141.22,0.67]
[1763268394952,0.2,141.23,141.22,3.38507869]
[1763268395859,0.2,141.23,141.22,0.67]
[1763268396057,0.2,141.23,141.21,2.71507869]
[1763268396251,0.2,141.23,141.22,0.67]
[1763268396434,0.2,141.23,141.21,0.67]
[1763268397328,0.2,141.23,141.19,0.67]
[1763268397329,3.30507869,141.23,141.19,0.67]
[1763268397549,0.39,141.22,141.19,0.67]
[1763268398353,3.30507869,141.23,141.19,0.67]
[1763268398556,2.71507869,141.22,141.19,0.67]
[1763268399150,3.30507869,141.23,141.19,0.67]
[1763268400462,12.50390638,141.21,141.16,0.67]
[1763268400664,12.50390638,141.21,141.17,2.71507869]
[1763268400869,12.50390638,141.21,141.16,0.67]
[1763268400870,9.78882769,141.22,141.18,2.71507869]
[1763268401172,12.50390638,141.22,141.18,2.71507869]
[1763268401363,12.50390638,141.22,141.19,0.67]
[1763268404155,2.91507869,141.23,141.19,3.38507869]
[1763268404671,2.91507869,141.23,141.2,0.71]
[1763268404871,0.2,141.23,141.21,2.71507869]
[1763268405078,0.2,141.23,141.22,2.71507869]
[1763268405566,0.2,141.23,141.22,3.42507869]
[1763268407053,0.2,141.23,141.22,0.71]
[1763268408369,0.2,141.23,141.22,3.42507869]
[1763268416780,0.2,141.23,141.22,2.71507869]
[1763268416986,0.2,141.23,141.21,2.71507869]
[1763268417186,0.2,141.23,141.22,0.71]
[1763268418168,0.2,141.23,141.21,3.42507869]
[1763268420787,0.2,141.23,141.22,3.42507869]
[1763268434107,0.2,141.26,141.22,15.92898507]
[1763268434309,0.2,141.26,141.25,2.71507869]
[1763268434801,0.2,141.26,141.25,3.40507869]
[1763268434987,0.2,141.26,141.25,2.42561125]
[1763268435188,0.2,141.26,141.25,5.26319504]
[1763268440121,0.2,141.27,141.25,5.26319504]
[1763268440311,0.2,141.27,141.26,2.42561125]
[1763268440706,0.2,141.27,141.26,5.26259128]
[1763268442212,0.2,141.29,141.28,22.6512]
[1763268442406,0.2,141.29,141.28,26.1224225]
[1763268442604,0.2,141.29,141.28,25.07681125]
[1763268442808,0.2,141.29,141.28,27.91318777]
[1763268443320,0.2,141.29,141.28,29.64879902]
[1763268443718,0.2,141.29,141.28,26.17757652]
[1763268444026,0.2,141.29,141.28,27.91318777]
[1763268446431,0.2,141.29,141.28,29.64879902]
[1763268446807,0.2,141.31,141.29,10.47882769]
[1763268447024,0.2,141.31,141.3,8.67805625]
[1763268447247,0.2,141.31,141.3,9.36805625]
[1763268447435,0.2,141.31,141.3,12.20403058]
[1763268449749,0.2,141.31,141.3,11.51403058]
[1763268449927,0.2,141.31,141.3,1.73561125]
[1763268450252,0.87,141.31,141.29,2.83657766]
[1763268450540,0.87,141.31,141.28,1.73561125]
[1763268450743,0.67,141.3,141.28,1.73561125]
[1763268451834,0.67,141.3,141.27,1.73561125]
[1763268452226,0.67,141.3,141.28,1.73561125]
[1763268457064,0.67,141.3,141.27,1.73561125]
[1763268457968,0.67,141.3,141.22,0.69]
[1763268458168,1.73561125,141.27,141.22,0.69]
[1763268458342,1.73561125,141.27,141.23,1.73561125]
[1763268458566,0.67,141.26,141.22,1.73561125]
[1763268458766,9.78882769,141.25,141.21,1.73561125]
[1763268458992,9.78882769,141.25,141.2,1.73561125]
[1763268459286,0.67,141.24,141.2,1.73561125]
[1763268459494,0.67,141.24,141.21,1.73561125]
[1763268460497,11.52443894,141.25,141.22,1.73561125]
[1763268460498,0.67,141.25,141.22,1.73561125]
[1763268460796,1.73561125,141.27,141.21,0.69]
[1763268460797,0.67,141.24,141.23,1.73561125]
[1763268461091,0.67,141.24,141.22,1.73561125]
[1763268462395,0.67,141.24,141.2,0.69]
[1763268462597,0.67,141.24,141.22,1.73561125]
[1763268464197,2.40561125,141.24,141.19,9.78882769]
[1763268464492,2.40561125,141.24,141.19,2.43561125]
[1763268464688,0.71,141.23,141.19,2.43561125]
[1763268465079,0.71,141.23,141.19,1.73561125]
[1763268465287,1.73561125,141.22,141.18,1.73561125]
[1763268465576,0.71,141.23,141.18,1.73561125]
[1763268465896,2.44561125,141.22,141.18,1.73561125]
[1763268466191,0.71,141.22,141.16,1.73561125]
[1763268466399,0.71,141.21,141.16,1.73561125]
[1763268466894,0.71,141.21,141.15,44.64516316]
[1763268466895,0.71,141.23,141.2,1.73561125]
[1763268468002,0.71,141.23,141.17,44.6421407]
[1763268468178,0.71,141.23,141.19,1.73561125]
[1763268470493,0.71,141.23,141.2,1.73561125]
[1763268472204,0.71,141.23,141.19,1.73561125]
[1763268474681,0.71,141.23,141.2,1.73561125]
[1763268476184,2.44561125,141.23,141.18,0.7]
[1763268476508,2.44561125,141.23,141.19,1.73561125]
[1763268476684,0.71,141.22,141.19,1.73561125]
[1763268476885,0.71,141.22,141.19,2.43561125]
[1763268477510,0.71,141.22,141.18,2.43561125]
[1763268480811,0.71,141.22,141.2,1.73561125]
[1763268481012,0.71,141.22,141.19,1.73561125]
[1763268481488,0.71,141.22,141.19,2.43561125]
[1763268482391,0.71,141.22,141.19,1.73561125]
[1763268483105,9.78882769,141.23,141.2,2.43561125]
[1763268483308,104.91,141.24,141.21,1.73561125]
[1763268483518,104.2,141.24,141.2,2.43561125]
[1763268483689,104.91,141.24,141.2,2.43561125]
[1763268484199,0.71,141.23,141.2,2.43561125]
[1763268485414,104.2,141.24,141.21,2.43561125]
[1763268485415,104.91,141.24,141.21,2.43561125]
[1763268486221,104.91,141.24,141.18,21.2909407]
[1763268486410,0.71,141.23,141.2,1.73561125]
[1763268486792,0.71,141.23,141.2,2.43561125]
[1763268487708,104.91,141.24,141.2,2.43561125]
[1763268488217,0.71,141.23,141.2,0.7]
[1763268488396,0.71,141.23,141.2,2.43561125]
[1763268490504,0.71,141.23,141.19,1.73561125]
[1763268490708,2.44561125,141.23,141.19,1.73561125]
[1763268490907,2.44561125,141.23,141.18,2.43561125]
[1763268491106,0.71,141.22,141.18,2.43561125]
[1763268491703,0.71,141.28,141.21,1.73561125]
[1763268491901,50.0,141.32,141.27,1.73561125]
[1763268492119,104.4,141.33,141.28,1.73561125]
[1763268492120,0.91,141.31,141.28,1.73561125]
[1763268492630,0.2,141.31,141.3,1.73561125]
[1763268492802,0.2,141.31,141.3,2.43561125]
[1763268492995,0.2,141.31,141.3,1.73561125]
[1763268493201,0.2,141.31,141.3,2.43561125]
[1763268494034,0.2,141.31,141.27,1.73561125]
[1763268494035,2.59561125,141.31,141.27,1.73561125]
[1763268494250,2.59561125,141.31,141.25,0.67]
[1763268494532,2.39561125,141.3,141.26,1.73561125]
[1763268494732,2.39561125,141.3,141.24,0.67]
[1763268494929,0.66,141.29,141.26,2.71246801]
[1763268498032,9.78882769,141.3,141.27,2.71246801]
[1763268498227,10.44882769,141.3,141.27,2.71246801]
[1763268498405,0.66,141.3,141.28,2.71246801]
[1763268498604,22.8512,141.31,141.28,2.71246801]
[1763268498912,23.5112,141.31,141.28,2.71246801]
[1763268499541,0.2,141.31,141.29,0.67]
[1763268499745,0.2,141.33,141.3,5.42493602]
[1763268500041,0.2,141.38,141.32,2.71246801]
[1763268500244,0.2,141.38,141.34,2.71246801]
[1763268500546,0.86,141.35,141.33,2.71246801]
[1763268500843,0.86,141.35,141.32,2.83597433]
[1763268500844,3.57246801,141.35,141.32,2.83597433]
[1763268501143,0.66,141.34,141.32,2.71246801]
[1763268501313,0.66,141.34,141.31,2.71246801]
[1763268501507,0.66,141.34,141.31,3.38246801]
[1763268501708,0.2,141.35,141.31,3.38246801]
[1763268502043,0.86,141.35,141.32,2.71246801]
[1763268502717,0.2,141.35,141.33,3.38246801]
[1763268503032,0.2,141.35,141.33,6.70935042]
[1763268503534,0.2,141.35,141.33,7.37935042]
[1763268504136,0.86,141.35,141.32,6.70935042]
[1763268504327,7.56935042,141.35,141.29,23.3212]
[1763268504643,0.66,141.34,141.31,6.70935042]
[1763268505146,6.90935042,141.35,141.33,6.70935042]
[1763268505147,0.2,141.35,141.33,6.70935042]
[1763268505514,0.2,141.35,141.33,7.37935042]
[1763268506415,0.2,141.35,141.31,6.90935042]
[1763268506416,0.2,141.35,141.32,6.70935042]
[1763268506620,0.86,141.35,141.32,6.70935042]
[1763268506817,0.66,141.34,141.31,6.70935042]
[1763268507727,0.66,141.34,141.31,7.37935042]
[1763268507931,0.2,141.35,141.32,7.37935042]
[1763268508335,0.2,141.35,141.33,7.37935042]
[1763268508533,0.2,141.35,141.32,6.70935042]
[1763268508847,0.86,141.35,141.32,6.70935042]
[1763268509142,0.86,141.35,141.32,7.37935042]
[1763268510349,0.2,141.35,141.32,7.37935042]
[1763268511122,0.86,141.35,141.32,7.37935042]
[1763268511554,0.2,141.35,141.32,7.37935042]
[1763268512626,0.2,141.35,141.33,6.70935042]
[1763268513254,0.2,141.35,141.33,7.37935042]
[1763268513957,0.2,141.35,141.34,7.37935042]
[1763268514649,0.2,141.35,141.34,6.70935042]
[1763268516637,0.2,141.35,141.34,7.37935042]
[1763268517030,0.2,141.35,141.34,10.21492267]
[1763268522669,0.2,141.35,141.34,7.37935042]
[1763268522965,0.2,141.35,141.34,6.70935042]
[1763268524861,0.2,141.35,141.34,2.70896464]
[1763268526334,0.2,141.35,141.33,2.70896464]
[1763268526534,0.89,141.35,141.33,2.70896464]
[1763268527044,0.2,141.35,141.33,2.70896464]
[1763268527545,0.2,141.35,141.33,3.38896464]
[1763268528329,0.2,141.35,141.34,2.70896464]
[1763268528836,0.2,141.35,141.33,3.38896464]
[1763268533646,0.2,141.35,141.31,22.6512]
[1763268533850,0.69,141.34,141.3,2.70896464]
[1763268536472,0.69,141.34,141.31,2.70896464]
[1763268539877,0.69,141.34,141.3,2.70896464]
[1763268541280,0.69,141.34,141.31,2.70896464]
[1763268542168,0.69,141.34,141.29,0.68]
[1763268542369,0.69,141.34,141.31,2.70896464]
[1763268543457,0.2,141.35,141.32,3.38896464]
[1763268543657,0.69,141.34,141.32,2.70896464]
[1763268546278,0.69,141.34,141.3,0.68]
[1763268546585,0.69,141.34,141.32,2.70896464]
[1763268550082,0.2,141.35,141.33,2.70896464]
[1763268551077,0.89,141.35,141.33,2.70896464]
[1763268551461,0.69,141.34,141.33,2.70896464]
[1763268553183,0.2,141.35,141.33,3.38896464]
[1763268553388,0.2,141.35,141.34,3.39896464]
[1763268556983,0.2,141.35,141.34,2.42333909]
[1763268557911,0.2,141.35,141.34,4.15667818]
[1763268558193,0.2,141.35,141.34,26.80787818]
[1763268558813,0.2,141.35,141.34,25.07453909]
[1763268559300,0.2,141.35,141.34,26.80787818]
[1763268559992,0.2,141.38,141.34,32.00789545]
[1763268560193,0.2,141.38,141.37,1.73333909]
[1763268560410,0.2,141.38,141.37,2.42333909]
[1763268562219,0.2,141.38,141.37,1.73333909]
[1763268562433,0.91,141.38,141.37,1.73333909]
[1763268562602,0.2,141.38,141.37,1.73333909]
[1763268563604,0.2,141.38,141.37,2.42333909]
[1763268570047,104.4,141.45,141.37,34.86336678]
[1763268570048,0.2,141.45,141.37,34.86336678]
[1763268570228,0.2,141.45,141.44,1.73333909]
[1763268570946,0.91,141.45,141.44,1.73333909]
[1763268572636,0.91,141.45,141.43,1.73333909]
[1763268573923,0.91,141.45,141.44,1.73333909]
[1763268577429,0.91,141.45,141.42,1.73333909]
[1763268577629,0.71,141.44,141.42,1.73333909]
[1763268581464,0.71,141.44,141.41,1.73333909]
[1763268581863,0.71,141.44,141.41,2.42333909]
[1763268582062,0.71,141.44,141.4,1.73333909]
[1763268582262,2.44333909,141.44,141.4,1.73333909]
[1763268582476,2.44333909,141.44,141.39,2.42333909]
[1763268582763,0.71,141.43,141.39,2.42333909]
[1763268582969,0.71,141.43,141.39,1.73333909]
[1763268584668,0.71,141.43,141.39,2.39333909]
[1763268585360,1.73333909,141.42,141.38,1.73333909]
[1763268585561,1.73333909,141.42,141.37,24.38453909]
[1763268585872,2.45333909,141.41,141.36,2.39333909]
[1763268586243,0.72,141.4,141.36,2.39333909]
[1763268586976,0.72,141.4,141.35,1.73333909]
[1763268586977,2.45333909,141.4,141.35,1.73333909]
[1763268587360,0.72,141.39,141.35,2.39333909]
[1763268587765,0.72,141.39,141.35,1.73333909]
[1763268587973,0.72,141.39,141.36,0.66]
[1763268588157,0.72,141.39,141.35,2.39333909]